bitfinex/quotes_ETHUSD_20251021
["timestamp","ask_amount","ask_price","bid_price","bid_amount"]
[1761006431369,15.94312917,3983.6,3983.5,0.002]
[1761006432576,19.43574017,3983.6,3983.5,0.002]
[1761006432783,15.99765817,3983.6,3983.5,0.002]
[1761006433283,13.76467317,3983.6,3983.5,0.002]
[1761006433653,13.86534908,3983.6,3983.5,0.002]
[1761006434176,25.92677108,3983.6,3983.5,0.002]
[1761006434380,26.22793608,3983.6,3983.5,0.002]
[1761006434578,16.84607308,3983.6,3983.5,0.002]
[1761006435163,13.86534908,3983.6,3983.5,0.002]
[1761006436288,16.74000408,3983.6,3983.5,0.002]
[1761006437879,16.63932817,3983.6,3983.5,0.002]
[1761006438579,16.13244817,3983.6,3983.5,0.002]
[1761006438782,4.23829219,3983.6,3983.5,0.002]
[1761006439085,2.5102401,3983.7,3983.5,0.002]
[1761006439380,2.5102495,3983.7,3983.5,0.002]
[1761006439597,2.5102495,3983.7,3983.5,0.4315]
[1761006439808,2.51029219,3983.6,3983.5,0.4315]
[1761006440114,2.63500756,3983.8,3983.5,0.4315]
[1761006440270,2.51029219,3983.6,3983.5,0.002]
[1761006441509,2.54167084,3983.6,3983.5,0.002]
[1761006441716,0.001,3983.9,3983.5,0.4315]
[1761006441871,2.51028659,3983.7,3983.5,0.002]
[1761006442076,2.51029219,3983.6,3983.5,0.002]
[1761006442296,0.03137786,3983.7,3983.5,0.002]
[1761006442472,0.03137786,3983.7,3983.5,0.4315]
[1761006443589,2.54161689,3983.7,3983.5,0.4315]
[1761006444298,0.03137786,3983.7,3983.5,0.4315]
[1761006444501,0.001,3983.9,3983.5,0.4315]
[1761006444694,2.51111217,3983.9,3983.5,0.4315]
[1761006445273,0.001,3983.9,3983.5,0.4315]
[1761006445474,2.51112806,3983.9,3983.5,0.4315]
[1761006445701,2.54155293,3983.8,3983.5,0.002]
[1761006446001,0.001,3983.9,3983.5,0.4315]
[1761006446504,0.001,3983.9,3983.6,0.01258584]
[1761006446701,0.001,3983.9,3983.5,0.4315]
[1761006447203,0.001,3983.9,3983.6,0.0125871]
[1761006447708,0.001,3983.9,3983.7,0.4295]
[1761006448403,0.001,3983.9,3983.8,0.36185]
[1761006448908,0.001,3983.9,3983.8,0.79135]
[1761006451600,0.001,3983.9,3983.8,0.91615]
[1761006457501,0.001,3983.9,3983.8,3.42631617]
[1761006457699,0.001,3983.9,3983.8,3.94577949]
[1761006457930,0.001,3983.9,3983.8,4.19737949]
[1761006458834,0.001,3983.9,3983.8,5.92537949]
[1761006459031,0.001,3983.9,3983.8,5.91279617]
[1761006460209,0.001,3983.9,3983.8,3.15103]
[1761006461344,0.001,3983.9,3983.8,0.91615]
[1761006463049,0.001,3983.9,3983.8,0.91815]
[1761006464249,0.001,3983.9,3983.8,0.48865]
[1761006464447,0.001,3983.9,3983.8,4.03533332]
[1761006465886,0.001,3983.9,3983.8,3.54785]
[1761006466172,0.001,3983.9,3983.8,3.186]
[1761006467630,0.001,3983.9,3983.8,3.6609]
[1761006468316,0.001,3983.9,3983.8,3.67348332]
[1761006472189,0.001,3983.9,3983.8,3.6609]
[1761006473883,0.001,3983.9,3983.8,3.67348332]
[1761006474080,0.001,3983.9,3983.8,4.54308861]
[1761006474296,0.001,3983.9,3983.8,7.05325478]
[1761006474495,0.001,3983.9,3983.8,7.16547146]
[1761006477564,0.001,3983.9,3983.8,9.65195146]
[1761006477764,0.001,3983.9,3983.8,9.27555146]
[1761006477994,0.001,3983.9,3983.8,6.76538529]
[1761006478195,0.001,3983.9,3983.8,9.27555146]
[1761006481804,0.001,3983.9,3983.8,2.59960529]
[1761006482103,0.001,3983.9,3983.8,4.913]
[1761006483603,0.001,3983.9,3983.8,7.88696617]
[1761006485431,0.001,3983.9,3983.8,8.64544617]
[1761006487741,0.001,3983.9,3983.8,6.26008]
[1761006488391,0.001,3983.9,3983.8,8.77024617]
[1761006488693,0.001,3983.9,3983.8,6.37882462]
[1761006489496,0.001,3983.9,3983.8,8.88899079]
[1761006490400,0.001,3983.9,3983.8,9.64747079]
[1761006490997,0.001,3983.9,3983.8,9.52267079]
[1761006497047,0.001,3983.9,3983.8,9.5125537]
[1761006498850,0.001,3983.9,3983.8,9.5145537]
[1761006501061,0.001,3983.9,3983.8,9.6393537]
[1761006507668,0.001,3984.3,3984.2,4.99639416]
[1761006507871,0.001,3984.3,3984.2,8.63289416]
[1761006508056,0.001,3984.3,3984.2,8.75769416]
[1761006508964,0.001,3984.3,3984.2,9.05979416]
[1761006512996,0.001,3984.3,3984.2,10.75579416]
[1761006513162,0.001,3984.3,3984.2,11.63301878]
[1761006516066,0.001,3984.3,3984.2,11.17851878]
[1761006516600,0.001,3984.3,3984.2,11.62431878]
[1761006517108,0.001,3984.3,3984.2,5.79363878]
[1761006517266,0.1006,3984.3,3984.2,7.79631416]
[1761006517963,0.001,3984.3,3984.2,2.1044]
[1761006518166,0.1006,3984.3,3984.2,5.2864]
[1761006518802,0.1006,3984.3,3984.2,7.79631416]
[1761006519003,0.1006,3984.3,3984.2,5.2864]
[1761006519697,0.1006,3984.3,3984.2,5.0348]
[1761006521366,0.1006,3984.3,3984.2,7.54471416]
[1761006522405,0.1006,3984.3,3984.2,5.0348]
[1761006524106,0.001,3984.3,3984.2,7.41991416]
[1761006524309,0.001,3984.3,3984.2,8.41290679]
[1761006524818,0.001,3984.3,3984.2,7.41991416]
[1761006527809,0.001,3984.3,3984.2,8.62419416]
[1761006529393,0.001,3984.3,3984.2,8.17839416]
[1761006533545,0.001,3984.3,3984.2,8.62419416]
[1761006534108,0.001,3984.3,3984.2,8.74899416]
[1761006534956,0.001,3984.3,3984.2,9.89141593]
[1761006535099,0.001,3984.3,3984.2,9.44561593]
[1761006536035,0.1013,3984.3,3984.2,9.44561593]
[1761006536237,0.001,3984.3,3984.2,9.44561593]
[1761006538155,0.001,3984.3,3984.2,3.24682177]
[1761006538343,0.1013,3984.3,3984.2,7.79631416]
[1761006538746,0.1013,3984.3,3984.2,1.8528]
[1761006538930,0.1013,3984.3,3984.2,5.0348]
[1761006539459,0.1013,3984.3,3984.2,3.3068]
[1761006540357,0.001,3984.3,3984.2,3.3068]
[1761006540527,0.001,3984.3,3984.2,6.62127118]
[1761006540731,0.001,3984.3,3984.2,6.60869416]
[1761006541136,0.001,3984.3,3984.2,6.14759416]
[1761006542014,0.001,3984.3,3984.2,5.81671416]
[1761006547958,0.001,3984.3,3984.2,6.06831416]
[1761006548946,0.001,3984.3,3984.2,6.52941416]
[1761006549156,0.001,3984.3,3984.2,7.38744761]
[1761006550041,0.001,3984.3,3984.2,6.92634761]
[1761006551268,0.001,3984.3,3984.2,7.89432761]
[1761006552790,0.001,3984.3,3984.2,9.62232761]
[1761006553651,0.001,3984.3,3984.2,9.16122761]
[1761006553972,0.001,3984.3,3984.2,5.47234761]
[1761006554172,0.1025,3984.3,3984.2,1.23443345]
[1761006554373,0.1025,3984.3,3984.2,3.5574]
[1761006556469,0.1025,3984.3,3984.2,3.3058]
[1761006559183,0.001,3984.3,3984.2,3.3058]
[1761006559382,0.001,3984.3,3984.2,5.81571416]
[1761006559685,0.001,3984.3,3984.2,6.67490721]
[1761006560059,0.001,3984.3,3984.2,7.65068721]
[1761006560461,0.001,3984.3,3984.2,9.37868721]
[1761006562280,0.001,3984.3,3984.2,8.90978721]
[1761006566293,0.001,3984.3,3984.2,9.37868721]
[1761006566659,0.001,3984.3,3984.2,8.90978721]
[1761006568197,0.001,3984.3,3984.2,9.16138721]
[1761006568589,0.001,3984.3,3984.2,9.63028721]
[1761006568908,0.001,3984.3,3984.2,9.16138721]
[1761006573108,0.001,3984.3,3984.2,8.65450721]
[1761006577400,0.001,3984.3,3984.2,9.16138721]
[1761006577599,0.001,3984.3,3984.2,9.62058721]
[1761006578001,0.001,3984.3,3984.2,9.49578721]
[1761006578183,0.001,3984.3,3984.2,9.62058721]
[1761006579313,0.001,3984.3,3984.2,9.16138721]
[1761006581414,0.001,3984.3,3984.2,8.30219416]
[1761006583423,0.001,3984.3,3984.2,5.2854]
[1761006583607,0.001,3984.3,3984.2,4.61431416]
[1761006583919,0.1025,3984.3,3984.2,3.18]
[1761006586601,0.13387313,3984.3,3984.2,3.18]
[1761006586795,0.1025,3984.3,3984.2,3.18]
[1761006587216,0.36686061,3984.3,3984.2,3.18]
[1761006592895,0.1025,3984.3,3984.2,3.18]
[1761006593289,0.001,3984.3,3984.2,5.68991416]
[1761006593704,0.001,3984.3,3984.2,5.81471416]
[1761006600246,0.001,3984.3,3984.2,6.27391416]
[1761006600417,0.001,3984.3,3984.2,9.3873847]
[1761006600754,0.001,3984.3,3984.2,8.9281847]
[1761006601034,0.001,3984.3,3984.2,9.3952847]
[1761006601736,0.001,3984.3,3984.2,6.41827054]
[1761006601907,0.2616,3984.3,3984.2,8.4213047]
[1761006602103,0.001,3984.3,3984.2,8.4213047]
[1761006602727,0.001,3984.3,3984.2,8.8884047]
[1761006603127,0.001,3984.3,3984.2,9.3952847]
[1761006608229,0.001,3984.3,3984.2,9.6468847]
[1761006610545,0.001,3984.7,3984.6,4.23766219]
[1761006610745,0.001,3984.7,3984.6,8.60825165]
[1761006610919,0.001,3984.7,3984.6,8.73305165]
[1761006611363,0.001,3984.7,3984.6,9.20015165]
[1761006615432,0.001,3984.7,3984.6,8.73305165]
[1761006617675,0.001,3984.7,3984.6,6.22338946]
[1761006617852,0.1006,3984.7,3984.6,3.3038]
[1761006622279,0.13196999,3984.7,3984.6,3.3038]
[1761006622779,2.6415692,3984.7,3984.6,3.3038]
[1761006622928,0.1006,3984.7,3984.6,3.3038]
[1761006623332,2.61019921,3984.7,3984.6,3.3038]
[1761006623544,3.13852651,3984.7,3984.6,3.3038]
[1761006625078,0.001,3984.7,3984.6,3.3038]
[1761006625590,0.001,3984.7,3984.6,6.24156219]
[1761006626856,0.001,3984.7,3984.6,3.3038]
[1761006627238,0.1019,3984.7,3984.6,3.3038]
[1761006627984,0.001,3984.7,3984.6,3.3038]
[1761006628137,0.001,3984.7,3984.6,6.14384219]
[1761006628336,0.001,3984.7,3984.6,3.63418]
[1761006628576,0.001,3984.7,3984.6,3.3038]
[1761006628750,0.1006,3984.7,3984.6,3.3038]
[1761006635282,2.6415692,3984.7,3984.6,3.3038]
[1761006636877,2.6415692,3984.7,3984.3,0.002]
[1761006636878,2.50978817,3984.4,3984.3,0.002]
[1761006637192,3.27589494,3984.4,3984.3,0.002]
[1761006637359,3.37549494,3984.4,3984.3,0.002]
[1761006638851,3.26535701,3984.7,3984.3,0.002]
[1761006638852,0.001,3984.7,3984.3,0.002]
[1761006639078,0.001,3984.7,3984.4,0.01257324]
[1761006639268,0.001,3984.7,3984.4,0.4463]
[1761006639480,0.001,3984.7,3984.6,2.50966219]
[1761006639680,0.001,3984.7,3984.5,2.5096652]
[1761006639892,0.001,3984.7,3984.6,0.73215298]
[1761006640401,0.001,3984.7,3984.6,0.71958163]
[1761006640579,0.001,3984.7,3984.6,3.22924382]
[1761006641164,0.001,3984.7,3984.6,3.67554382]
[1761006641358,0.001,3984.7,3984.6,3.68811454]
[1761006642198,0.001,3984.7,3984.6,6.86611454]
[1761006642498,0.001,3984.7,3984.6,6.85354382]
[1761006645668,0.001,3984.7,3984.6,4.34388163]
[1761006645874,0.001,3984.7,3984.6,6.86611454]
[1761006646085,0.001,3984.7,3984.6,6.85354382]
[1761006646893,0.001,3984.7,3984.6,4.46868163]
[1761006647069,0.1412,3984.8,3984.6,3.178]
[1761006647274,0.03136684,3985.1,3984.6,3.178]
[1761006647472,2.50945284,3985.0,3984.6,3.178]
[1761006647675,2.54087666,3984.9,3984.6,3.178]
[1761006648089,0.1412,3984.8,3984.6,3.178]
[1761006650867,0.2174,3984.8,3984.6,3.178]
[1761006651407,0.2184,3984.8,3984.6,3.178]
[1761006651902,0.1422,3984.8,3984.6,3.178]
[1761006652114,0.001,3984.8,3984.6,3.178]
[1761006652398,0.001,3984.8,3984.6,3.6243]
[1761006652763,0.001,3984.8,3984.6,3.178]
[1761006654691,0.001,3984.8,3984.6,6.13394713]
[1761006655695,0.001,3984.8,3984.6,3.178]
[1761006656996,0.001,3984.8,3984.7,0.1248]
[1761006660415,0.0784,3984.8,3984.7,0.1248]
[1761006660792,2.58793623,3984.8,3984.7,0.1248]
[1761006660994,2.50978817,3984.4,3984.3,0.002]
[1761006661239,2.54116052,3984.4,3984.3,0.002]
[1761006661539,2.61856052,3984.4,3984.3,0.002]
[1761006662019,2.74056052,3984.4,3984.3,0.002]
[1761006663789,2.61856052,3984.4,3984.3,0.002]
[1761006663990,3.14386754,3984.4,3984.3,0.002]
[1761006664212,3.11249519,3984.4,3984.3,0.002]
[1761006664691,3.14386754,3984.4,3984.3,0.002]
[1761006664890,3.26866754,3984.4,3984.3,0.002]
[1761006666342,3.23729519,3984.4,3984.3,0.002]
[1761006666810,3.26866754,3984.4,3984.3,0.002]
[1761006667416,3.23729519,3984.4,3984.3,0.002]
[1761006667615,4.96529519,3984.4,3984.3,0.002]
[1761006670827,4.31518817,3984.4,3984.3,0.002]
[1761006671437,4.23778817,3984.4,3984.3,0.002]
[1761006671638,2.50978817,3984.4,3984.3,0.002]
[1761006672006,0.1268,3984.5,3984.3,0.002]
[1761006672206,0.52472466,3984.8,3984.3,0.4576]
[1761006672207,0.001,3984.8,3984.3,0.4576]
[1761006672439,0.001,3984.8,3984.7,0.1248]
[1761006672825,2.72783623,3984.8,3984.7,0.1248]
[1761006674841,2.75920543,3984.8,3984.7,0.1248]
[1761006675050,2.68240543,3984.8,3984.7,0.1248]
[1761006675254,2.54190543,3984.8,3984.7,0.1248]
[1761006676113,2.51053623,3984.8,3984.7,0.1248]
[1761006678598,0.001,3984.8,3984.7,0.1248]
[1761006678904,0.001,3984.8,3984.7,0.5973]
[1761006679192,0.001,3984.8,3984.7,0.1248]
[1761006679707,0.001,3984.8,3984.7,0.5973]
[1761006680512,0.001,3984.8,3984.7,0.1248]
[1761006681245,0.001,3984.8,3984.7,0.5973]
[1761006682340,0.001,3984.8,3984.7,0.90799874]
[1761006683203,0.001,3984.8,3984.7,0.92056789]
[1761006683444,0.001,3984.8,3984.7,0.90799874]
[1761006683903,0.001,3984.8,3984.7,0.5973]
[1761006684927,0.001,3984.8,3984.7,3.10689921]
[1761006685429,0.001,3984.8,3984.7,6.28489921]
[1761006686197,0.001,3984.8,3984.7,3.3028]
[1761006689738,0.001,3984.8,3984.7,3.7753]
[1761006690236,0.001,3984.8,3984.7,3.93150158]
[1761006690702,0.001,3984.8,3984.7,3.3028]
[1761006690703,2.51053623,3984.8,3984.7,3.3028]
[1761006691404,0.001,3984.8,3984.7,3.3028]
[1761006691707,0.0323692,3984.8,3984.7,3.3028]
[1761006692027,2.54190543,3984.8,3984.7,3.3028]
[1761006693143,0.0323692,3984.8,3984.7,3.3028]
[1761006693623,2.54190543,3984.8,3984.7,3.3028]
[1761006693931,2.78210543,3984.8,3984.7,3.3028]
[1761006694429,2.68310543,3984.8,3984.7,3.3028]
[1761006694740,2.64130543,3984.8,3984.7,3.3028]
[1761006695375,3.17055854,3984.8,3984.7,3.3028]
[1761006696589,2.64130543,3984.8,3984.7,3.3028]
[1761006696761,0.001,3984.8,3984.7,3.3028]
[1761006697460,2.51053623,3984.8,3984.7,3.3028]
[1761006697775,0.001,3984.8,3984.7,3.3028]
[1761006698480,2.51053623,3984.8,3984.7,3.3028]
[1761006698649,0.001,3984.8,3984.7,3.3028]
[1761006699679,2.51053623,3984.8,3984.7,3.3028]
[1761006699989,3.06775918,3984.8,3984.7,3.3028]
[1761006701882,2.96755918,3984.8,3984.7,3.3028]
[1761006702083,0.001,3984.8,3984.7,3.3028]
[1761006702554,0.001,3984.8,3984.7,3.7449]
[1761006706404,0.001,3984.8,3984.7,3.3028]
[1761006706585,2.51053623,3984.8,3984.7,3.3028]
[1761006706788,2.64290543,3984.8,3984.7,3.3028]
[1761006706961,3.17216029,3984.8,3984.7,3.3028]
[1761006707997,3.07116029,3984.8,3984.7,3.3028]
[1761006709184,3.17216029,3984.8,3984.7,3.3028]
[1761006711369,3.07116029,3984.8,3984.7,3.3028]
[1761006712003,3.17216029,3984.8,3984.7,3.3028]
[1761006712470,3.07116029,3984.8,3984.7,3.3028]
[1761006714601,3.17216029,3984.8,3984.7,3.3028]
[1761006714902,3.07116029,3984.8,3984.7,3.3028]
[1761006717072,3.17216029,3984.8,3984.7,3.3028]
[1761006717979,3.07116029,3984.8,3984.7,3.3028]
[1761006718180,2.50959921,3984.7,3984.6,0.002]
[1761006718397,3.18257668,3984.7,3984.6,0.002]
[1761006719911,3.21394667,3984.7,3984.6,0.002]
[1761006721302,3.11294667,3984.7,3984.6,0.002]
[1761006721509,2.50959921,3984.7,3984.6,0.002]
[1761006721711,0.53025486,3984.8,3984.6,0.002]
[1761006721712,0.001,3984.8,3984.6,0.002]
[1761006721876,0.001,3984.8,3984.6,0.5596]
[1761006722206,0.001,3984.8,3984.7,0.62589571]
[1761006722408,0.001,3984.8,3984.7,1.05869571]
[1761006723703,0.001,3984.8,3984.7,0.4328]
[1761006725705,0.001,3984.8,3984.6,0.1268]
[1761006725883,0.0323692,3984.8,3984.6,0.1268]
[1761006726211,0.0323692,3984.8,3984.6,0.5596]
[1761006726427,0.001,3984.8,3984.6,0.5596]
[1761006727001,0.001,3984.8,3984.7,0.4328]
[1761006728688,0.001,3984.8,3984.6,0.1268]
[1761006729389,0.001,3984.8,3984.6,0.5596]
[1761006729989,0.001,3984.8,3984.7,0.4328]
[1761006735013,0.001,3984.8,3984.6,0.1268]
[1761006735339,0.001,3984.8,3984.6,0.5596]
[1761006736248,0.001,3984.8,3984.7,0.4517]
[1761006736541,2.74979921,3984.7,3984.6,0.002]
[1761006736932,5.92579921,3984.7,3984.6,0.002]
[1761006737135,4.23778817,3984.4,3984.3,1e-08]
[1761006737331,15.59963854,3984.4,3984.3,1e-08]
[1761006737558,16.17694619,3984.4,3984.3,1e-08]
[1761006738046,16.27760031,3984.4,3984.3,1e-08]
[1761006738416,19.45360031,3984.4,3984.3,1e-08]
[1761006738741,21.91538116,3984.4,3984.3,1e-08]
[1761006738950,18.1614899,3984.4,3984.3,1e-08]
[1761006739945,10.07802314,3984.4,3984.3,1e-08]
[1761006740884,5.07222314,3984.4,3984.3,1e-08]
[1761006741060,0.10065412,3984.4,3984.3,0.45170001]
[1761006741370,2.50965797,3984.7,3984.3,0.45170001]
[1761006742168,2.5097389,3984.5,3984.3,0.45170001]
[1761006742750,2.50965704,3984.7,3984.3,0.45170001]
[1761006742964,2.50967866,3984.6,3984.3,0.45170001]
[1761006743268,0.001,3984.8,3984.4,3.176]
[1761006743929,0.001,3984.8,3984.5,0.4517]
[1761006744651,2.51055508,3984.8,3984.5,0.4517]
[1761006744957,2.5105882,3984.8,3984.5,0.4517]
[1761006745160,2.50972518,3984.5,3984.4,3.176]
[1761006745361,0.001,3984.8,3984.4,3.176]
[1761006745659,0.001,3984.8,3984.5,0.4517]
[1761006745860,2.51056484,3984.8,3984.5,0.4517]
[1761006746070,0.001,3984.8,3984.5,0.4517]
[1761006746229,0.001,3984.8,3984.4,3.176]
[1761006746230,0.0323692,3984.8,3984.4,3.176]
[1761006746430,2.50959921,3984.7,3984.6,0.1248]
[1761006749151,2.60859921,3984.7,3984.6,0.1248]
[1761006749472,2.50959921,3984.7,3984.6,0.1248]
[1761006750979,0.001,3984.8,3984.6,0.5803]
[1761006751334,0.001,3984.8,3984.7,0.4555]
[1761006755465,2.50959921,3984.7,3984.6,0.1248]
[1761006755664,2.54194644,3984.8,3984.6,0.1248]
[1761006758343,2.54194644,3984.8,3984.6,0.5803]
[1761006758644,0.0323692,3984.8,3984.6,0.5803]
[1761006758842,0.001,3984.8,3984.6,0.1248]
[1761006759057,0.001,3984.8,3984.7,0.4555]
[1761006759456,2.51053623,3984.8,3984.7,0.4555]
[1761006759789,2.51053623,3984.8,3984.6,0.1248]
[1761006759790,2.50959921,3984.7,3984.6,0.1248]
[1761006760951,2.5105597,3984.8,3984.6,0.1248]
[1761006762480,2.50959921,3984.7,3984.6,0.1248]
[1761006764094,2.54192563,3984.8,3984.6,0.1248]
[1761006764663,0.0323692,3984.8,3984.6,0.5803]
[1761006765060,0.0323692,3984.8,3984.7,0.4555]
[1761006765298,2.54190543,3984.8,3984.7,0.4555]
[1761006766520,0.001,3984.8,3984.7,0.4555]
[1761006767492,0.001,3984.8,3984.6,0.1248]
[1761006767666,2.510547,3984.8,3984.6,0.1248]
[1761006768196,2.5409692,3984.7,3984.6,0.1248]
[1761006768378,2.6399692,3984.7,3984.6,3.3008]
[1761006769179,2.5409692,3984.7,3984.6,3.3008]
[1761006770068,2.6399692,3984.7,3984.6,3.3008]
[1761006770726,2.6399692,3984.7,3984.3,1e-08]
[1761006770727,2.50978817,3984.4,3984.3,1e-08]
[1761006771024,4.23778817,3984.4,3984.3,1e-08]
[1761006771219,4.36816052,3984.4,3984.3,1e-08]
[1761006771393,20.17809852,3984.4,3984.3,1e-08]
[1761006771592,11.30894317,3984.4,3984.3,1e-08]
[1761006771804,13.63380304,3984.4,3984.3,1e-08]
[1761006772998,13.25962704,3984.4,3984.3,1e-08]
[1761006773604,13.30337056,3984.4,3984.3,1e-08]
[1761006775825,12.09340156,3984.4,3984.3,1e-08]
[1761006776323,9.78239156,3984.4,3984.3,1e-08]
[1761006776492,7.55653169,3984.4,3984.3,1e-08]
[1761006778534,16.08282645,3984.4,3984.3,1e-08]
[1761006780041,15.85780645,3984.4,3984.3,1e-08]
[1761006780744,15.95845601,3984.4,3984.3,1e-08]
[1761006782834,16.46533601,3984.4,3984.3,1e-08]
[1761006783028,18.43328956,3984.4,3984.3,1e-08]
[1761006789956,18.43428956,3984.4,3984.3,1e-08]
[1761006790993,36.59734282,3984.4,3984.3,1e-08]
[1761006791190,3.01698316,3983.9,3983.8,1e-08]
[1761006791399,22.0584252,3983.9,3983.8,1e-08]
[1761006791552,23.52914008,3983.9,3983.8,1e-08]
[1761006791752,22.33494008,3983.9,3983.8,1e-08]
[1761006791969,22.43561421,3983.9,3983.8,1e-08]
[1761006792271,14.65451321,3983.9,3983.8,1e-08]
[1761006792776,13.89603321,3983.9,3983.8,1e-08]
[1761006792988,8.14294832,3983.9,3983.8,1e-08]
[1761006793291,5.68610316,3983.9,3983.8,1e-08]
[1761006796681,10.23208139,3983.9,3983.8,1e-08]
[1761006796854,10.48478139,3983.9,3983.8,1e-08]
[1761006797056,24.72992839,3983.9,3983.8,1e-08]
[1761006797258,24.72992839,3983.9,3982.7,0.002]
[1761006797259,2.51079642,3982.8,3982.7,0.002]
[1761006797505,20.53002769,3982.8,3982.7,0.002]
[1761006797797,12.67643056,3982.5,3981.3,0.2232]
[1761006798101,21.23780605,3982.5,3981.3,0.2232]
[1761006798256,15.62065501,3982.1,3981.0,0.219]
[1761006798456,24.1820305,3982.1,3980.8,0.219]
[1761006798655,32.14536306,3981.7,3980.3,0.4317]
[1761006798853,39.12607429,3981.7,3980.3,0.4317]
[1761006799080,39.24402755,3981.7,3980.3,0.4317]
[1761006799281,40.6363357,3981.7,3980.3,0.4317]
[1761006799475,45.61401393,3981.7,3980.3,0.4317]
[1761006799663,49.26985193,3981.7,3980.3,0.4317]
[1761006799863,2.5122472,3980.5,3980.3,0.002]
[1761006800094,18.24422275,3980.5,3980.3,0.002]
[1761006800399,15.73419498,3980.5,3980.3,0.002]
[1761006800696,11.18821675,3980.5,3980.3,0.002]
[1761006800896,11.23200274,3980.5,3980.3,0.002]
[1761006801299,9.14781468,3980.1,3980.0,0.002]
[1761006801499,29.29852187,3980.1,3980.0,0.002]
[1761006801700,29.39792187,3980.1,3980.0,0.002]
[1761006802004,30.04662187,3980.1,3980.0,0.002]
[1761006802200,32.69262187,3980.1,3980.0,0.002]
[1761006802401,2.51361945,3978.4,3978.3,0.219]
[1761006802697,1.728,3978.8,3978.3,0.219]
[1761006802914,2.51314907,3979.1,3978.4,0.4297]
[1761006803086,2.5131867,3979.1,3978.4,0.74594401]
[1761006803287,3.177,3979.2,3978.4,0.4297]
[1761006803482,7.41806795,3979.2,3979.1,0.219]
[1761006803882,7.41806795,3979.2,3979.1,0.6487]
[1761006804744,3.177,3979.6,3979.1,0.6487]
[1761006804876,2.5129958,3979.4,3979.1,0.219]
[1761006805074,0.03141255,3979.3,3979.1,0.219]
[1761006805302,2.54441734,3979.3,3979.2,0.4297]
[1761006805503,0.03141255,3979.3,3979.2,0.4297]
[1761006806083,2.51260349,3980.0,3979.2,0.4297]
[1761006806294,3.178,3979.9,3979.2,0.4297]
[1761006806697,1.728,3980.0,3979.2,2.94275913]
[1761006806907,1.728,3980.0,3979.2,0.4297]
[1761006807113,1.728,3980.0,3979.3,0.4297]
[1761006807411,4.24057507,3980.0,3979.3,0.4297]
[1761006807982,1.728,3980.0,3979.3,0.4297]
[1761006809317,3.179,3980.5,3979.3,0.4297]
[1761006809484,1.728,3980.4,3979.3,0.4297]
[1761006809808,2.51244186,3980.2,3979.4,2.51293466]
[1761006810004,2.51244186,3980.2,3979.3,2.9426896]
[1761006810203,2.51264359,3979.9,3979.3,0.4297]
[1761006810389,2.5128585,3979.6,3979.4,0.4308]
[1761006810590,2.54428948,3979.5,3979.4,0.4308]
[1761006810791,0.03141098,3979.5,3979.4,0.4308]
[1761006810986,2.54396322,3980.1,3979.4,0.4308]
[1761006811221,2.51263247,3979.9,3979.4,0.4308]
[1761006811419,0.03140861,3979.8,3979.4,0.4308]
[1761006811710,2.54411719,3979.8,3979.4,0.4308]
[1761006812084,0.03140861,3979.8,3979.4,0.4308]
[1761006812291,1.728,3980.4,3979.4,2.94369814]
[1761006812517,1.728,3980.4,3979.7,0.1256]
[1761006812518,1.8536,3980.4,3979.7,0.1256]
[1761006812823,2.51242241,3980.3,3979.7,0.1256]
[1761006813032,1.8536,3980.4,3979.8,0.4308]
[1761006813199,4.36591397,3980.4,3980.3,0.2271]
[1761006813590,4.36591397,3980.4,3980.3,0.6579]
[1761006813987,2.51241357,3980.3,3979.7,0.1256]
[1761006814218,2.51255138,3980.1,3979.8,0.4308]
[1761006814523,2.54385985,3980.2,3979.8,0.4308]
[1761006814827,1.8536,3980.4,3980.1,0.2271]
[1761006815187,1.728,3980.4,3980.2,0.4308]
[1761006816429,0.001,3980.5,3980.2,0.4308]
[1761006816995,2.5132625,3980.5,3980.2,0.4308]
[1761006817203,0.001,3980.5,3980.2,0.4308]
[1761006817724,0.001,3980.5,3980.4,0.1256]
[1761006817900,0.001,3980.9,3980.8,2.51205787]
[1761006818232,2.51099269,3982.5,3981.3,2.51174239]
[1761006818426,0.0313881,3982.4,3981.7,2.51148314]
[1761006818630,1.728,3982.7,3981.8,2.51142596]
[1761006818792,1.728,3982.8,3981.9,0.6579]
[1761006818997,0.1728,3982.9,3982.2,2.51112757]
[1761006819217,3.18,3983.4,3982.3,2.51106385]
[1761006819529,2.51060408,3983.2,3982.4,2.51104494]
[1761006819708,2.51060408,3983.2,3982.4,2.94184494]
[1761006819901,2.51061925,3983.1,3982.5,0.4308]
[1761006821198,2.51050266,3983.3,3982.5,2.94177102]
[1761006821599,2.51050266,3983.3,3983.2,0.2271]
[1761006821827,2.51065011,3983.1,3982.6,0.4308]
[1761006822020,2.51065011,3983.1,3982.6,0.6579]
[1761006822222,2.51067385,3983.0,3982.6,0.6579]
[1761006822394,0.03138416,3982.9,3982.7,0.4308]
[1761006822798,2.51073567,3982.9,3982.7,0.4308]
[1761006823013,2.51066667,3983.1,3982.7,0.4308]
[1761006823247,3.07952324,3983.4,3982.7,0.4308]
[1761006823248,2.51056076,3983.2,3982.7,0.4308]
[1761006823820,2.51066356,3983.1,3982.7,0.4308]
[1761006824022,0.56904305,3983.4,3982.7,0.4308]
[1761006824233,2.51055685,3983.2,3982.7,0.4308]
[1761006824428,2.51061049,3983.1,3982.7,0.4308]
[1761006824919,2.51067539,3983.0,3982.7,0.4308]
[1761006825733,0.001,3983.1,3982.7,0.4308]